[Event "IIFL Wealth 4th Mumbai GM"]
[Site "Mumbai"]
[Date "2019.01.04"]
[Round "6"]
[White "Rebut, Paul"]
[Black "Wahba, David George"]
[Result "1-0"]
[ECO "A00"]
[WhiteElo "1740"]
[BlackElo "1295"]
[Annotator "NA"]
[PlyCount "111"]
[EventDate "2018.12.30"]
[EventType "swiss"]
[EventCountry "IND"]
[SourceTitle "playchess.com"]
[Source "ChessBase"]
[SourceQuality "1"]
[TimeControl "40/5400+30:1800+30"]

1. g4 {[%emt 0:00:06]} d5 {[%emt 0:00:00]} 2. Bg2 {[%emt 0:00:11]} Bxg4 {[%emt 0:00:09]} 3. c4 {[%emt 0:00:08]} c6 {[%emt 0:01:02]} 4. Qb3 {[%emt 0:00:14]} Qb6 {[%emt 0:04:44]} 5. Qxb6 {[%emt 0:01:13]} axb6 {[%emt 0:00:13]} 6. cxd5 {[%emt 0:00:06]} c5 {[%emt 0:01:06]} 7. Nc3 {[%emt 0:02:14]} Nf6 {[%emt 0:02:39]} 8. d3 {[%emt 0:00:57]} Na6 {[%emt 0:01:48]} 9. Nb5 {[%emt 0:02:05]} Kd7 {[%emt 0:00:47]} 10. a3 {[%emt 0:04:57]} Nb4 {[%emt 0:02:34]} 11. Rb1 {[%emt 0:04:25]} Nbxd5 {[%emt 0:00:57]} 12. Nc3 {[%emt 0:00:26]} Nxc3 {[%emt 0:00:25]} 13. bxc3 {[%emt 0:00:12]} Kc7 14. Bf4+ {[%emt 0:00:38]} Kd8 {[%emt 0:04:06]} 15. Rxb6 {[%emt 0:03:12]} Rxa3 {[%emt 0:02:05]} 16. Rxb7 {[%emt 0:01:04]} Rxc3 {[%emt 0:01:44]} 17. Bc6 {[%emt 0:01:59]} Nd7 {[%emt 0:02:37]} 18. Ra7 {[%emt 0:00:46]} e5 {[%emt 0:04:19]} 19. Ra8+ {[%emt 0:13:35]} Ke7 {[%emt 0:00:55]} 20. Kd2 {[%emt 0:04:48]} Rb3 {[%emt 0:02:15]} 21. Be3 {[%emt 0:00:17]} g6 {[%emt 0:00:46]} 22. Kc2 Rb6 {[%emt 0:00:16]} 23. Bxd7 {[%emt 0:01:03]} Kxd7 {[%emt 0:00:59]} 24. h3 {[%emt 0:05:20]} Bf5 {[%emt 0:01:12]} 25. Nf3 {[%emt 0:02:15]} Bg7 {[%emt 0:00:35]} 26. Ra7+ {[%emt 0:00:26]} Ke6 {[%emt 0:00:34]} 27. Ng5+ {[%emt 0:00:36]} Kd5 {[%emt 0:01:16]} 28. Rxf7 {[%emt 0:04:04]} Rhb8 {[%emt 0:00:54]} 29. Bc1 {[%emt 0:02:24]} Bh6 {[%emt 0:03:09]} 30. e4+ {[%emt 0:00:43]} Kd6 {[%emt 0:00:08]} 31. Rf6+ {[%emt 0:00:51]} Kd7 {[%emt 0:00:38]} 32. Rxb6 {[%emt 0:00:12]} Rxb6 33. exf5 Bxg5 34. Bxg5 gxf5 {[%emt 0:01:48]} 35. Re1 {[%emt 0:02:03]} Re6 {[%emt 0:01:39]} 36. Kc3 Kc6 37. Kc4 {[%emt 0:00:42]} e4 {[%emt 0:00:39]} 38. dxe4 {[%emt 0:00:06]} fxe4 {[%emt 0:00:41]} 39. Be3 {[%emt 0:05:16]} Re5 {[%emt 0:00:38]} 40. Rg1 {[%emt 0:00:11]} Rh5 {[%emt 0:00:42]} 41. Rg3 {[%emt 0:30:05]} Kb6 {[%emt 0:30:32]} 42. Bg5 {[%emt 0:05:49]} Kc6 {[%emt 0:00:34]} 43. h4 {[%emt 0:00:00]} h6 {[%emt 0:00:00]} 44. Be3 {[%emt 0:00:00]} Rxh4 {[%emt 0:00:00]} 45. Rg6+ {[%emt 0:00:00]} Kd7 {[%emt 0:00:00]} 46. Rxh6 {[%emt 0:00:00]} Rxh6 {[%emt 0:00:00]} 47. Bxh6 {[%emt 0:00:00]} Ke6 {[%emt 0:00:00]} 48. Kxc5 {[%emt 0:00:00]} Ke5 {[%emt 0:00:00]} 49. Be3 {[%emt 0:00:00]} Ke6 {[%emt 0:00:00]} 50. Kd4 {[%emt 0:00:00]} Kf5 {[%emt 0:00:00]} 51. Kd5 {[%emt 0:00:00]} Kf6 {[%emt 0:00:00]} 52. Kxe4 {[%emt 0:00:00]} Ke6 {[%emt 0:00:00]} 53. f4 {[%emt 0:00:00]} Kf6 {[%emt 0:00:00]} 54. Bd4+ {[%emt 0:00:00]} Ke6 {[%emt 0:00:00]} 55. Be5 {[%emt 0:00:00]} Kf7 {[%emt 0:00:00]} 56. Kf5 {[%emt 0:00:00]} 1-0

[Event "IIFL Wealth 4th Mumbai GM"]
[Site "Mumbai"]
[Date "2019.01.04"]
[Round "6"]
[White "Kishor, Shazzad"]
[Black "Laoussing, Mathis"]
[Result "1/2-1/2"]
[ECO "A00"]
[WhiteElo "1730"]
[BlackElo "1438"]
[Annotator "NA"]
[PlyCount "85"]
[EventDate "2018.12.30"]
[EventType "swiss"]
[EventCountry "IND"]
[SourceTitle "playchess.com"]
[Source "ChessBase"]
[SourceQuality "1"]
[TimeControl "40/5400+30:1800+30"]

1. g3 {[%emt 0:00:19]} d5 {[%emt 0:00:12]} 2. Bg2 {[%emt 0:00:15]} e5 {[%emt 0:00:29]} 3. c4 {[%emt 0:00:13]} Nf6 {[%emt 0:02:25]} 4. cxd5 {[%emt 0:00:46]} Nxd5 {[%emt 0:01:00]} 5. Nc3 {[%emt 0:00:07]} Be6 {[%emt 0:01:24]} 6. d3 {[%emt 0:02:16]} Nc6 {[%emt 0:01:07]} 7. Nf3 {[%emt 0:00:30]} Bb4 {[%emt 0:00:52]} 8. Bd2 {[%emt 0:00:02]} O-O {[%emt 0:00:13]} 9. O-O {[%emt 0:01:38]} Qd7 {[%emt 0:02:20]} 10. a3 {[%emt 0:00:18]} Bd6 {[%emt 0:00:24]} 11. Ne4 {[%emt 0:01:35]} Bh3 {[%emt 0:01:18]} 12. Nxd6 {[%emt 0:01:00]} cxd6 {[%emt 0:00:19]} 13. b4 {[%emt 0:01:03]} Bxg2 {[%emt 0:03:16]} 14. Kxg2 {[%emt 0:00:03]} Rac8 {[%emt 0:02:04]} 15. Qb3 {[%emt 0:01:25]} Qe6 {[%emt 0:02:30]} 16. Qa2 {[%emt 0:03:34]} Nce7 {[%emt 0:02:45]} 17. e4 {[%emt 0:02:32]} Nf4+ {[%emt 0:10:49]} 18. Bxf4 {[%emt 0:04:14]} exf4 {[%emt 0:00:29]} 19. Qxe6 {[%emt 0:02:18]} fxe6 {[%emt 0:00:06]} 20. Rfc1 {[%emt 0:01:28]} Ng6 {[%emt 0:03:51]} 21. d4 {[%emt 0:02:16]} e5 {[%emt 0:00:34]} 22. d5 {[%emt 0:00:43]} b5 {[%emt 0:01:23]} 23. Nd2 {[%emt 0:08:23]} Ne7 {[%emt 0:02:31]} 24. f3 {[%emt 0:00:55]} Rxc1 {[%emt 0:02:57]} 25. Rxc1 {[%emt 0:00:02]} Rc8 {[%emt 0:00:12]} 26. Rxc8+ {[%emt 0:01:05]} Nxc8 {[%emt 0:00:20]} 27. gxf4 {[%emt 0:03:15]} exf4 {[%emt 0:02:30]} 28. Kh3 {[%emt 0:00:17]} g5 {[%emt 0:04:34]} 29. Kg4 {[%emt 0:00:11]} h6 {[%emt 0:00:33]} 30. h4 {[%emt 0:00:08]} gxh4 {[%emt 0:04:52]} 31. Kxf4 {[%emt 0:02:12]} Nb6 {[%emt 0:00:44]} 32. Kg4 {[%emt 0:16:46]} Nc4 {[%emt 0:00:23]} 33. Nb1 {[%emt 0:00:22]} Ne5+ {[%emt 0:00:40]} 34. Kxh4 {[%emt 0:00:27]} Nxf3+ {[%emt 0:00:24]} 35. Kh5 {[%emt 0:07:39]} Kg7 {[%emt 0:02:56]} 36. Nc3 {[%emt 0:00:35]} a6 {[%emt 0:00:35]} 37. Kg4 {[%emt 0:03:23]} Nd2 {[%emt 0:03:33]} 38. Kf5 {[%emt 0:00:49]} Kf7 {[%emt 0:02:53]} 39. a4 {[%emt 0:00:53]} bxa4 {[%emt 0:01:05]} 40. Nxa4 {[%emt 0:00:00]} h5 {[%emt 0:00:00]} 41. Nc3 {[%emt 0:02:54]} h4 {[%emt 0:01:04]} 42. Kg4 {[%emt 0:00:07]} Kf6 {[%emt 0:00:06]} 43. b5 {[%emt 0:02:17]} 1/2-1/2

[Event "IIFL Wealth 4th Mumbai GM"]
[Site "Mumbai"]
[Date "2019.01.04"]
[Round "6"]
[White "Shah, Ram Surat Prasad"]
[Black "Kafle, Binod"]
[Result "1/2-1/2"]
[ECO "C55"]
[WhiteElo "1639"]
[BlackElo "1191"]
[Annotator "NA"]
[PlyCount "84"]
[EventDate "2018.12.30"]
[EventType "swiss"]
[EventCountry "IND"]
[SourceTitle "playchess.com"]
[Source "ChessBase"]
[SourceQuality "1"]
[TimeControl "40/5400+30:1800+30"]

1. e4 {[%emt 0:00:49]} e5 {[%emt 0:03:43]} 2. Nf3 {[%emt 0:00:20]} Nc6 {[%emt 0:00:22]} 3. Bc4 {[%emt 0:00:15]} Nf6 {[%emt 0:00:30]} 4. d4 {[%emt 0:01:19]} exd4 {[%emt 0:01:54]} 5. e5 {[%emt 0:00:50]} Ng4 {[%emt 0:01:04]} 6. Bxf7+ {[%emt 0:00:38]} Kxf7 7. Ng5+ Kg8 {[%emt 0:02:26]} 8. Qxg4 {[%emt 0:01:12]} Nxe5 {[%emt 0:01:42]} 9. Qxd4 {[%emt 0:00:46]} Qe8 {[%emt 0:04:05]} 10. O-O {[%emt 0:00:51]} c5 {[%emt 0:02:30]} 11. Qc3 {[%emt 0:01:25]} h6 {[%emt 0:03:13]} 12. Nf3 {[%emt 0:01:33]} Nxf3+ {[%emt 0:02:20]} 13. Qxf3 {[%emt 0:00:27]} d6 {[%emt 0:03:15]} 14. Nc3 {[%emt 0:01:06]} Be6 {[%emt 0:03:51]} 15. Bf4 {[%emt 0:03:30]} Qd7 {[%emt 0:04:32]} 16. Rfe1 {[%emt 0:01:11]} d5 {[%emt 0:02:55]} 17. Qg3 {[%emt 0:03:01]} Re8 {[%emt 0:03:54]} 18. h3 {[%emt 0:03:07]} b5 {[%emt 0:01:10]} 19. Rad1 {[%emt 0:00:27]} Qc6 {[%emt 0:01:26]} 20. Nxd5 {[%emt 0:00:17]} Bxd5 {[%emt 0:00:22]} 21. Rxe8 {[%emt 0:00:13]} Qxe8 {[%emt 0:00:55]} 22. Rxd5 {[%emt 0:00:03]} Kh7 {[%emt 0:01:11]} 23. Bd6 {[%emt 0:00:52]} Bxd6 {[%emt 0:00:28]} 24. Qxd6 {[%emt 0:00:33]} Qe1+ {[%emt 0:00:57]} 25. Kh2 {[%emt 0:00:14]} Qxf2 {[%emt 0:00:43]} 26. Rxc5 {[%emt 0:00:25]} a6 {[%emt 0:00:50]} 27. Rc7 Rf8 28. Qe5 {[%emt 0:03:21]} Qf4+ {[%emt 0:01:33]} 29. Qxf4 {[%emt 0:00:09]} Rxf4 {[%emt 0:00:55]} 30. Kg3 Rf6 31. b3 {[%emt 0:02:10]} Kg6 {[%emt 0:00:51]} 32. a4 {[%emt 0:00:12]} bxa4 {[%emt 0:00:25]} 33. bxa4 {[%emt 0:00:09]} Kf5 {[%emt 0:00:15]} 34. Kf3 {[%emt 0:00:17]} g6 {[%emt 0:00:06]} 35. g4+ Ke5+ 36. Ke3 {[%emt 0:01:29]} Kd5 {[%emt 0:00:51]} 37. h4 {[%emt 0:01:07]} Rb6 {[%emt 0:00:52]} 38. Rh7 {[%emt 0:08:51]} g5 {[%emt 0:00:27]} 39. h5 {[%emt 0:00:37]} Kc4 {[%emt 0:00:37]} 40. Rf7 {[%emt 0:00:52]} Kc5 {[%emt 0:00:51]} 41. Rf5+ {[%emt 0:30:16]} Kb4 {[%emt 0:30:15]} 42. a5 {[%emt 0:00:10]} Rb7 {[%emt 0:00:24]} 1/2-1/2

[Event "IIFL Wealth 4th Mumbai GM"]
[Site "Mumbai"]
[Date "2019.01.06"]
[Round "8"]
[White "Rathnakaran, K.."]
[Black "Phadke Sohan"]
[Result "1-0"]
[ECO "B30"]
[WhiteElo "2366"]
[BlackElo "2191"]
[Annotator "NA"]
[PlyCount "78"]
[EventDate "2018.12.30"]
[EventType "swiss"]
[EventCountry "IND"]
[SourceTitle "playchess.com"]
[Source "ChessBase"]
[SourceQuality "1"]
[TimeControl "40/5400+30:1800+30"]

1. e4 {[%emt 0:00:00]} c5 {[%emt 0:00:00]} 2. Nf3 {[%emt 0:00:00]} Nc6 {[%emt 0:03:34]} 3. Bb5 {[%emt 0:00:00]} e6 {[%emt 0:01:03]} 4. O-O {[%emt 0:00:00]} a6 {[%emt 0:00:14]} 5. Bxc6 {[%emt 0:00:19]} bxc6 {[%emt 0:00:04]} 6. e5 {[%emt 0:01:18]} f6 {[%emt 0:00:54]} 7. Nc3 {[%emt 0:00:07]} fxe5 {[%emt 0:00:13]} 8. Nxe5 {[%emt 0:00:06]} Nf6 {[%emt 0:00:08]} 9. a4 {[%emt 0:02:09]} d6 {[%emt 0:08:26]} 10. Ng4 {[%emt 0:00:19]} Be7 {[%emt 0:02:43]} 11. Nxf6+ {[%emt 0:00:46]} Bxf6 {[%emt 0:02:17]} 12. Ne4 {[%emt 0:00:04]} O-O {[%emt 0:02:22]} 13. Ra3 {[%emt 0:00:49]} Be7 {[%emt 0:05:56]} 14. f4 {[%emt 0:04:09]} d5 {[%emt 0:05:59]} 15. Ng3 {[%emt 0:00:09]} c4 {[%emt 0:04:48]} 16. Raf3 {[%emt 0:00:07]} Rb8 {[%emt 0:08:25]} 17. Kh1 {[%emt 0:03:29]} c5 {[%emt 0:11:51]} 18. Qe2 {[%emt 0:03:32]} g6 {[%emt 0:10:00]} 19. b3 {[%emt 0:00:15]} cxb3 {[%emt 0:00:06]} 20. cxb3 {[%emt 0:00:05]} Bf6 {[%emt 0:00:07]} 21. Ba3 {[%emt 0:00:22]} Qd6 {[%emt 0:18:22]} 22. Qf2 {[%emt 0:01:20]} d4 {[%emt 0:03:15]} 23. Rc1 {[%emt 0:02:30]} Bb7 {[%emt 0:00:14]} 24. Bxc5 {[%emt 0:00:13]} Qd7 {[%emt 0:02:15]} 25. Bxf8 {[%emt 0:00:19]} Rxf8 {[%emt 0:00:26]} 26. Rd3 {[%emt 0:06:24]} e5 {[%emt 0:01:19]} 27. fxe5 {[%emt 0:02:40]} Bxe5 {[%emt 0:02:20]} 28. Qe2 {[%emt 0:00:07]} Re8 {[%emt 0:00:11]} 29. Re1 {[%emt 0:00:31]} Bc6 {[%emt 0:00:15]} 30. Kg1 {[%emt 0:00:30]} Qd5 {[%emt 0:00:20]} 31. Qf2 {[%emt 0:04:19]} Qd6 {[%emt 0:03:17]} 32. Rxe5 {[%emt 0:10:08]} Qxe5 {[%emt 0:00:15]} 33. Rxd4 {[%emt 0:00:12]} a5 {[%emt 0:01:28]} 34. h3 {[%emt 0:02:20]} h5 {[%emt 0:00:34]} 35. h4 {[%emt 0:05:03]} Qe6 {[%emt 0:01:23]} 36. Qf4 {[%emt 0:01:32]} Bd5 {[%emt 0:00:58]} 37. b4 {[%emt 0:03:43]} axb4 38. Rxb4 {[%emt 0:00:08]} Kh7 {[%emt 0:01:07]} 39. a5 {[%emt 0:01:04]} Rf8 {[%emt 0:00:38]} 1-0

[Event "IIFL Wealth 4th Mumbai GM"]
[Site "Mumbai"]
[Date "2019.01.06"]
[Round "8"]
[White "Anuj Shrivatri"]
[Black "Subrota, Biswas"]
[Result "1-0"]
[ECO "A04"]
[WhiteElo "2357"]
[BlackElo "2171"]
[Annotator "NA"]
[PlyCount "236"]
[EventDate "2018.12.30"]
[EventType "swiss"]
[EventCountry "IND"]
[SourceTitle "playchess.com"]
[Source "ChessBase"]
[SourceQuality "1"]
[TimeControl "40/5400+30:1800+30"]

1. Nf3 {[%emt 0:00:00]} f5 {[%emt 0:00:00]} 2. d3 {[%emt 0:00:00]} Nc6 {[%emt 0:00:01] A04: Unusual lines after 1 Nf3 and King's Indian Attack} 3. d4 {[%emt 0:00:00]} (3. e4 e5 4. Nc3 Bb4 5. exf5 d5 6. d4 e4 7. Bg5 Be7 8. Bxe7 Ngxe7 9. Nh4 Bxf5 10. Qh5+ g6 11. Qh6 Qd6 12. Bb5 {½-½ (30) Malakhov,V (2654)-Ivanchuk,V (2714) Zagreb 2018}) 3... e6 {[%emt 0:00:15]} 4. g3 {[%emt 0:00:00]} Nf6 {[%emt 0:00:05]} 5. Bg2 {[%emt 0:00:00]} Be7 {[%emt 0:00:21]} 6. c4 {[%emt 0:00:00]} Ne4 $146 {[%emt 0:09:51]} ({Predecessor:} 6... O-O 7. d5 Bb4+ 8. Bd2 Bxd2+ 9. Qxd2 Ne4 10. Qc1 exd5 11. cxd5 {½-½ (30) Petrov,N (2573)-Demuth,A (2547) Bad Ragaz 2018}) 7. O-O {[%emt 0:02:09]} Bf6 {[%emt 0:01:25]} 8. d5 {[%emt 0:03:09]} Nb8 {[%emt 0:05:22]} 9. Nbd2 {[%emt 0:09:06]} Nc5 {[%emt 0:05:42]} 10. Rb1 {[%emt 0:01:25]} a5 {[%emt 0:00:14]} 11. Qc2 {[%emt 0:02:32]} O-O {[%emt 0:06:26]} 12. e4 {[%emt 0:02:06]} fxe4 {[%emt 0:05:26]} 13. Nxe4 {[%emt 0:02:25]} Nxe4 {[%emt 0:00:51]} 14. Qxe4 {[%emt 0:00:06]} e5 {[%emt 0:07:55]} 15. d6 {[%emt 0:06:12]} cxd6 {[%emt 0:03:20]} 16. Qd5+ {[%emt 0:06:43]} Kh8 {[%emt 0:01:14]} 17. Qxd6 {[%emt 0:00:14]} Nc6 {[%emt 0:05:08]} 18. Be3 {[%emt 0:02:03]} Be7 {[%emt 0:04:29]} 19. Qd2 {[%emt 0:01:45]} d6 {[%emt 0:02:00]} 20. Ng5 {[%emt 0:10:07]} Bf5 {[%emt 0:07:08]} 21. Rbc1 {[%emt 0:03:21]} Qd7 {[%emt 0:01:24]} 22. Ne4 {[%emt 0:01:37]} Qe6 {[%emt 0:04:23]} 23. Nc3 {[%emt 0:06:36]} Rab8 {[%emt 0:07:34]} 24. Nd5 {[%emt 0:01:07]} e4 {[%emt 0:01:32]} 25. Nxe7 {[%emt 0:12:33]} Qxe7 {[%emt 0:00:03]} 26. c5 {[%emt 0:00:21]} dxc5 {[%emt 0:01:48]} 27. Bxc5 {[%emt 0:02:39]} Qd8 {[%emt 0:04:06]} 28. Qf4 {[%emt 0:06:59]} Rf6 {[%emt 0:02:41]} 29. Bxe4 {[%emt 0:00:39]} Bxe4 {[%emt 0:01:35]} 30. Qxe4 {[%emt 0:00:35]} Qd7 {[%emt 0:00:31]} 31. Rfd1 {[%emt 0:01:19]} Qf7 {[%emt 0:00:12]} 32. Qd5 {[%emt 0:01:40]} Re6 {[%emt 0:00:04]} 33. Kg2 {[%emt 0:02:07]} Qf6 {[%emt 0:00:37]} 34. Rc3 {[%emt 0:02:17]} Re5 {[%emt 0:06:01]} 35. Qd6 {[%emt 0:03:44]} Qf7 {[%emt 0:00:21]} 36. Rf3 {[%emt 0:01:07]} Qe8 {[%emt 0:00:04]} 37. Qf8+ {[%emt 0:06:08]} Qxf8 {[%emt 0:00:02]} 38. Rxf8+ {[%emt 0:00:45]} Rxf8 {[%emt 0:00:03]} 39. Bxf8 {[%emt 0:00:05]} Kg8 {[%emt 0:00:34]} 40. Ba3 {[%emt 0:00:00]} Re2 {[%emt 0:00:00]} 41. Rd5 {[%emt 0:05:05]} b6 {[%emt 0:16:46]} 42. Rb5 {[%emt 0:01:21]} Ne5 {[%emt 0:01:33]} 43. Kf1 {[%emt 0:01:17]} Re4 {[%emt 0:00:18]} 44. Rxb6 {[%emt 0:00:11]} Nc4 {[%emt 0:00:07]} 45. Rb8+ {[%emt 0:00:12]} Kf7 {[%emt 0:00:02]} 46. Bc5 {[%emt 0:00:21]} Ne5 {[%emt 0:01:02]} 47. Rb5 {[%emt 0:03:03]} Nd3 {[%emt 0:00:37]} 48. Be3 {[%emt 0:00:16]} a4 {[%emt 0:00:34]} 49. Ke2 {[%emt 0:00:23]} Nc1+ {[%emt 0:00:05]} 50. Kf3 {[%emt 0:02:41]} Rc4 {[%emt 0:00:07]} 51. Rb7+ {[%emt 0:01:26]} Kf6 {[%emt 0:00:22]} 52. Bxc1 {[%emt 0:00:39]} Rxc1 {[%emt 0:00:08]} 53. a3 {[%emt 0:00:02]} h6 {[%emt 0:01:24]} 54. h4 {[%emt 0:00:03]} Rc2 {[%emt 0:00:37]} 55. Rb6+ {[%emt 0:00:33]} Ke5 {[%emt 0:00:46]} 56. Ke3 {[%emt 0:00:47]} Kf5 {[%emt 0:00:16]} 57. f3 {[%emt 0:00:33]} Rg2 {[%emt 0:01:12]} 58. g4+ {[%emt 0:00:51]} Ke5 {[%emt 0:00:01]} 59. h5 {[%emt 0:00:58]} Rh2 {[%emt 0:00:24]} 60. Rb5+ {[%emt 0:00:35]} Ke6 {[%emt 0:01:54]} 61. Kf4 {[%emt 0:00:33]} Rf2 {[%emt 0:00:45]} 62. Rb6+ {[%emt 0:00:21]} Kf7 {[%emt 0:00:23]} 63. Ke4 {[%emt 0:00:20]} Ke7 {[%emt 0:00:20]} 64. f4 {[%emt 0:00:20]} Rc2 {[%emt 0:00:35]} 65. Kf5 {[%emt 0:00:04]} Kf7 {[%emt 0:00:16]} 66. Rb7+ {[%emt 0:00:13]} Kg8 {[%emt 0:00:32]} 67. g5 {[%emt 0:00:14]} hxg5 {[%emt 0:00:31]} 68. fxg5 {[%emt 0:00:02]} Rc5+ {[%emt 0:00:04]} 69. Kf4 {[%emt 0:00:10]} Rc4+ {[%emt 0:00:33]} 70. Ke3 {[%emt 0:00:12]} Rh4 {[%emt 0:00:24]} 71. h6 {[%emt 0:00:35]} gxh6 {[%emt 0:00:06]} 72. gxh6 {[%emt 0:00:03]} Rxh6 {[%emt 0:00:30]} 73. Kd3 {[%emt 0:00:05]} Kf8 $2 {[%emt 0:00:47]} (73... Ra6 {was worth a try.} 74. Kc4 Ra8) 74. Kc3 {[%emt 0:00:11]} (74. Kc4 $18 {and the rest is easy.}) 74... Ke8 {[%emt 0:00:24]} 75. Rb4 {[%emt 0:00:26]} Ra6 {[%emt 0:00:05]} 76. Rd4 {[%emt 0:00:12]} Ke7 {[%emt 0:00:12]} 77. Rd2 {[%emt 0:00:36]} Rb6 78. Rd5 {[%emt 0:00:23]} Rc6+ $1 {[%emt 0:01:33]} 79. Kd3 {[%emt 0:00:57]} Rb6 {[%emt 0:00:44]} 80. Kc2 {[%emt 0:00:06]} Rc6+ 81. Kb1 {[%emt 0:00:04]} Ra6 {[%emt 0:05:01]} (81... Rc4 $1 $11) 82. Rd4 {[%emt 0:00:09]} Ke6 {[%emt 0:00:58]} 83. Kc2 {[%emt 0:00:03]} Ra8 {[%emt 0:00:44]} 84. Kc3 {[%emt 0:00:07]} Ke5 {[%emt 0:00:36]} 85. Rd2 {[%emt 0:00:21]} Rb8 {[%emt 0:03:25]} 86. Kc4 {[%emt 0:00:04]} Ke6 {[%emt 0:01:14]} 87. Kc5 {[%emt 0:00:04]} Rb3 {[%emt 0:00:26] [#]} 88. Kc6 $2 {[%emt 0:00:17]} (88. Rd6+ $1 $18 {and the rest is easy.} Ke7 89. Rb6) 88... Ke7 {[%emt 0:00:07]} 89. Rd7+ {[%emt 0:00:28]} Ke6 {[%emt 0:00:26]} 90. Rb7 {[%emt 0:00:15]} Rg3 {[%emt 0:05:48]} 91. Rb4 {[%emt 0:00:05]} Rg2 {[%emt 0:00:56]} 92. Kb5 {[%emt 0:00:04]} Kd5 {[%emt 0:00:33]} 93. Kxa4 {[%emt 0:00:05]} Kc6 {[%emt 0:00:24]} 94. Kb3 {[%emt 0:00:13]} Rg5 {[%emt 0:00:29]} 95. Rc4+ {[%emt 0:00:10]} Kb6 {[%emt 0:00:15]} 96. a4 {[%emt 0:00:05]} Ka5 {[%emt 0:00:36]} 97. Ka3 {[%emt 0:00:04]} Rg3+ {[%emt 0:00:15]} 98. b3 {[%emt 0:00:03]} Rh3 {[%emt 0:00:02]} 99. Rc5+ {[%emt 0:00:09]} Kb6 {[%emt 0:00:30]} 100. Rg5 {[%emt 0:00:05]} Rh4 {[%emt 0:00:16]} 101. Rg6+ {[%emt 0:00:31]} Ka7 {[%emt 0:01:05]} 102. a5 {[%emt 0:00:05]} Kb7 {[%emt 0:00:26]} 103. b4 {[%emt 0:00:10]} Ka7 {[%emt 0:00:39]} 104. Ka4 {[%emt 0:00:05]} Kb7 {[%emt 0:00:47]} 105. a6+ {[%emt 0:00:21]} Kc7 {[%emt 0:01:16]} 106. Ka5 {[%emt 0:00:04]} Rh1 {[%emt 0:00:20]} 107. Rg7+ {[%emt 0:00:07]} Kb8 {[%emt 0:00:32]} 108. b5 {[%emt 0:00:19]} Rh5 {[%emt 0:00:17]} 109. Rd7 {[%emt 0:01:12]} Rg5 {[%emt 0:00:25]} 110. Kb6 {[%emt 0:00:47]} Rg8 {[%emt 0:00:14]} 111. Rd6 {[%emt 0:01:50]} Rh8 {[%emt 0:01:00]} 112. Rd5 {[%emt 0:01:03]} Rg8 {[%emt 0:01:13]} 113. Ka5 {[%emt 0:00:06]} Kc7 {[%emt 0:00:31]} 114. a7 {[%emt 0:01:06]} Kb7 {[%emt 0:00:39] [#]} 115. b6 $1 {[%emt 0:00:07]} Ra8 {[%emt 0:02:57]} 116. Rd7+ {[%emt 0:00:05]} Kc6 {[%emt 0:00:16]} 117. Rc7+ {[%emt 0:00:03]} Kd6 {[%emt 0:00:08]} 118. Rc1 {[%emt 0:00:07]} Kd5 1-0

[Event "IIFL Wealth 4th Mumbai GM"]
[Site "Mumbai"]
[Date "2019.01.06"]
[Round "8"]
[White "Tran, Minh Thang"]
[Black "Aaryan Varshney"]
[Result "0-1"]
[ECO "B53"]
[WhiteElo "2342"]
[BlackElo "2200"]
[Annotator "NA"]
[PlyCount "92"]
[EventDate "2018.12.30"]
[EventType "swiss"]
[EventCountry "IND"]
[SourceTitle "playchess.com"]
[Source "ChessBase"]
[SourceQuality "1"]
[TimeControl "40/5400+30:1800+30"]

1. e4 c5 {[%emt 0:06:57]} 2. Nf3 {[%emt 0:00:00]} d6 {[%emt 0:00:15]} 3. d4 {[%emt 0:00:00]} cxd4 {[%emt 0:00:04]} 4. Qxd4 {[%emt 0:00:00]} Nc6 {[%emt 0:00:07]} 5. Bb5 {[%emt 0:00:00]} Bd7 {[%emt 0:00:05]} 6. Qd3 {[%emt 0:00:12]} g6 {[%emt 0:01:56]} 7. O-O {[%emt 0:00:13]} Bg7 {[%emt 0:00:05]} 8. c4 {[%emt 0:00:08]} Nf6 {[%emt 0:00:06]} 9. h3 {[%emt 0:00:05]} O-O {[%emt 0:00:05]} 10. Nc3 {[%emt 0:00:05]} Rc8 {[%emt 0:06:27]} 11. Bxc6 {[%emt 0:00:15]} Bxc6 {[%emt 0:00:53]} 12. Be3 {[%emt 0:00:08]} Nd7 {[%emt 0:15:26]} 13. Nd4 {[%emt 0:00:01]} Nc5 {[%emt 0:06:31]} 14. Qc2 {[%emt 0:00:16]} Ne6 {[%emt 0:04:54]} 15. Rfd1 {[%emt 0:00:30]} Nxd4 {[%emt 0:00:40]} 16. Bxd4 {[%emt 0:00:04]} Bxd4 {[%emt 0:00:10]} 17. Rxd4 {[%emt 0:00:03]} Qb6 {[%emt 0:00:32]} 18. Rad1 {[%emt 0:00:14]} Rfd8 {[%emt 0:00:11]} 19. Qd2 {[%emt 0:00:19]} Qc5 {[%emt 0:01:37]} 20. Nd5 {[%emt 0:01:48]} Bxd5 {[%emt 0:04:46]} 21. exd5 {[%emt 0:00:09]} Kg7 {[%emt 0:02:20]} 22. Re1 {[%emt 0:00:29]} Rd7 {[%emt 0:02:12]} 23. Rh4 {[%emt 0:00:16]} h5 {[%emt 0:02:46]} 24. Re3 {[%emt 0:04:48]} Rh8 {[%emt 0:10:34]} 25. Qc3+ {[%emt 0:00:55]} f6 {[%emt 0:00:29]} 26. Rhe4 {[%emt 0:01:29]} Kf7 {[%emt 0:03:14]} 27. b4 {[%emt 0:00:32]} Qc7 {[%emt 0:01:54]} 28. c5 {[%emt 0:00:01]} dxc5 {[%emt 0:01:33]} 29. Qc4 {[%emt 0:13:05]} cxb4 {[%emt 0:03:40]} 30. Qb3 {[%emt 0:11:36]} Kg7 {[%emt 0:01:35]} 31. Qxb4 {[%emt 0:00:23]} Re8 32. Re6 {[%emt 0:00:02]} Kf7 {[%emt 0:01:51]} 33. Qe4 {[%emt 0:03:01]} Rd6 {[%emt 0:04:18]} 34. Rg3 {[%emt 0:00:45]} Rg8 {[%emt 0:00:14]} 35. Re3 {[%emt 0:03:03]} Re8 {[%emt 0:00:39]} 36. Rf3 {[%emt 0:06:07]} Qc1+ {[%emt 0:04:39]} 37. Kh2 {[%emt 0:00:03]} Qc7 {[%emt 0:00:13]} 38. g3 {[%emt 0:04:20]} Qd7 {[%emt 0:01:53]} 39. Qf4 {[%emt 0:18:55]} Rxe6 {[%emt 0:02:15]} 40. dxe6+ {[%emt 0:00:00]} Qxe6 {[%emt 0:00:00]} 41. Qh6 {[%emt 0:00:07]} Rg8 {[%emt 0:02:42]} 42. a3 {[%emt 0:00:05]} Qe2 {[%emt 0:02:43]} 43. Qf4 {[%emt 0:01:45]} Rd8 {[%emt 0:02:31]} 44. g4 {[%emt 0:12:45]} Rd1 {[%emt 0:04:37]} 45. gxh5 {[%emt 0:04:15]} Qf1 {[%emt 0:00:17]} 46. hxg6+ {[%emt 0:00:52]} Kg7 {[%emt 0:00:04]} 0-1